[Event "Charlotte Spring GM-A 2024"]
[Site "Charlotte"]
[Date "2024.03.31"]
[Round "8.3"]
[White "Gauri, Shankar"]
[Black "Levine, Joseph"]
[Result "0-1"]
[ECO "E04"]
[WhiteElo "2345"]
[BlackElo "2372"]
[Annotator "RC"]
[PlyCount "112"]
[EventDate "2024.03.27"]
[EventType "tourn"]
[EventCountry "USA"]
[SourceTitle "playchess.com"]
[Source "ChessBase"]
[SourceQuality "1"]
[TimeControl "5400+30"]

1. d4 {[%emt 0:23:46]} Nf6 {[%emt 0:00:06]} 2. c4 {[%emt 0:00:24]} e6 {[%emt 0:00:06]} 3. Nf3 {[%emt 0:00:04]} d5 {[%emt 0:00:06]} 4. g3 {[%emt 0:00:02]} dxc4 {[%emt 0:00:06]} 5. Bg2 {[%emt 0:00:02]} a6 {[%emt 0:00:08]} 6. O-O {[%emt 0:00:08]} Nc6 {[%emt 1:32:58]} 7. Bg5 {[%emt 0:00:35]} Be7 {[%emt 0:00:00]} 8. e3 {[%emt 0:02:18]} Bd7 {[%emt 0:00:00]} 9. Nbd2 {[%emt 0:06:03]} b5 {[%emt 0:00:00]} 10. b3 {[%emt 0:00:49]} cxb3 {[%emt 0:00:00]} 11. Nxb3 {[%emt 0:01:35]} O-O {[%emt 0:00:00]} 12. Qe2 {[%emt 0:14:35]} h6 {[%emt 0:00:00]} 13. Bxf6 {[%emt 0:00:12]} Bxf6 {[%emt 0:00:00]} 14. Rac1 {[%emt 0:01:14]} Ra7 {[%emt 0:00:00]} 15. Rfd1 {[%emt 0:21:50]} Qe7 {[%emt 0:00:00]} 16. Nfd2 {[%emt 0:02:14]} Nb8 {[%emt 0:00:00]} 17. Na5 {[%emt 0:03:57]} e5 {[%emt 0:00:00]} 18. d5 {[%emt 0:00:17]} Qa3 {[%emt 0:00:00]} 19. Ndb3 {[%emt 0:01:00]} Be7 {[%emt 0:00:00]} 20. Qc2 {[%emt 0:11:36]} Bb4 {[%emt 0:00:00]} 21. Nc6 {[%emt 0:00:01]} Nxc6 {[%emt 0:00:00]} 22. dxc6 {[%emt 0:00:02]} Bg4 {[%emt 0:00:00]} 23. Rd3 {[%emt 0:06:36]} Bf5 {[%emt 0:00:00]} 24. e4 {[%emt 0:00:01]} Be6 {[%emt 0:00:00]} 25. Rcd1 {[%emt 0:01:07]} Bd6 {[%emt 0:00:00]} 26. R1d2 {[%emt 0:02:18]} Bc4 {[%emt 0:00:00]} 27. Rf3 {[%emt 0:00:18]} Qa4 {[%emt 0:00:00]} 28. Bf1 {[%emt 0:00:40]} Be6 {[%emt 0:00:00]} 29. Nc5 {[%emt 0:00:02]} Qxc2 {[%emt 0:00:00]} 30. Rxc2 {[%emt 0:00:01]} Bxa2 {[%emt 0:00:00]} 31. Nd7 {[%emt 0:01:40]} Bb1 {[%emt 0:00:00]} 32. Rc1 {[%emt 0:00:19]} Bxe4 {[%emt 0:00:00]} 33. Re3 {[%emt 0:00:04]} Bd5 {[%emt 0:00:00]} 34. Nxf8 {[%emt 0:01:01]} Kxf8 {[%emt 0:00:00]} 35. Rd3 {[%emt 0:00:37]} Be6 {[%emt 0:00:00]} 36. Rdd1 {[%emt 0:00:30]} b4 {[%emt 0:00:00]} 37. Bc4 {[%emt 0:00:25]} Bxc4 {[%emt 0:00:00]} 38. Rxc4 {[%emt 0:00:01]} Ke7 {[%emt 0:00:00]} 39. f4 {[%emt 0:00:35]} f6 {[%emt 0:00:00]} 40. fxe5 {[%emt 0:00:02]} fxe5 {[%emt 0:00:00]} 41. Rg4 {[%emt 0:00:25]} Kf7 {[%emt 0:17:30]} 42. Rc4 {[%emt 0:01:33]} Ke6 {[%emt 0:00:30]} 43. Rg4 {[%emt 0:00:11]} g5 {[%emt 0:00:00]} 44. h4 {[%emt 0:00:04]} Kf5 {[%emt 0:01:00]} 45. Rc4 Ra8 {[%emt 0:00:00]} 46. hxg5 {[%emt 0:01:31]} hxg5 {[%emt 0:00:00]} 47. Ra1 {[%emt 0:00:43]} a5 {[%emt 0:00:00]} 48. Ra4 {[%emt 0:00:01]} Ke6 {[%emt 0:00:00]} 49. Rc1 {[%emt 0:00:26]} Kd5 {[%emt 0:00:00]} 50. Rca1 {[%emt 0:00:11]} Kxc6 {[%emt 0:03:00]} 51. Rxa5 {[%emt 0:00:02]} Rxa5 {[%emt 0:00:00]} 52. Rxa5 {[%emt 0:00:02]} b3 {[%emt 0:00:00]} 53. Ra1 {[%emt 0:00:28]} Kb5 {[%emt 0:01:30]} 54. Kf2 {[%emt 0:00:08]} Kc4 {[%emt 0:00:00]} 55. Ke3 {[%emt 0:00:29]} b2 {[%emt 0:00:00]} 56. Rb1 {[%emt 0:00:07]} Kc3 {[%emt 0:00:00]} 0-1

[Event "Charlotte Spring GM-A 2024"]
[Site "Charlotte"]
[Date "2024.03.31"]
[Round "8.4"]
[White "Tsay, Vincent"]
[Black "Ali Marandi, Cemil Can"]
[Result "0-1"]
[ECO "E05"]
[WhiteElo "2337"]
[BlackElo "2516"]
[Annotator "TA"]
[PlyCount "104"]
[EventDate "2024.03.27"]
[EventType "tourn"]
[EventCountry "USA"]
[SourceTitle "playchess.com"]
[Source "ChessBase"]
[SourceQuality "1"]
[TimeControl "5400+30"]

{[%evp 14,104,14,10,26,-21,-19,-19,-16,-72,-55,-62,-59,-214,-135,-139,-120,-284,-78,-86,-73,-68,0,-3,-12,-181,-147,-179,-115,-358,-378,-374,-372,-379,-363,-337,-141,-143,-85,-73,-75,-78,-104,-72,-7,-224,-103,-107,-71,-68,-65,-64,-64,-79,-85,-87,-68,-175,-189,-175,-181,-546,-535,-942,-942,-904,-891,-868,-835,-29978,-29979,-29978,-29979,-29984,-29985,-29985,-29984,-29984,-29983,-29983,-29979,-29979,-29978,-29978,-29979,-29979,-29980,-29980,-29981,-29981,-29982,-29982,-29983]} 1. d4 {[%emt 0:16:24]} d5 {[%emt 0:00:09]} 2. c4 {[%emt 0:00:06]} e6 {[%emt 0:00:07]} 3. Nf3 {[%emt 0:00:05]} Nf6 {[%emt 0:00:27]} 4. g3 {[%emt 0:00:05]} Be7 {[%emt 0:00:31]} 5. Bg2 {[%emt 0:00:04]} O-O {[%emt 0:00:16]} 6. O-O {[%emt 0:00:05]} dxc4 {[%emt 0:00:03]} 7. Qc2 {[%emt 0:00:05]} b5 {[%emt 0:00:06]} 8. a4 {[%emt 0:00:11] E05: Open Catalan: 5 Nf3 Be7.} b4 {[%emt 0:02:09]} 9. Qxc4 {[%emt 0:03:04]} (9. Nfd2 {might be stronger.} c6 10. Nxc4 (10. Qxc4 Ba6 $15)) 9... Ba6 $11 {[%emt 0:09:56]} 10. Qc2 {[%emt 0:00:49]} Nbd7 {[%emt 0:02:50]} 11. Bg5 {[%emt 0:06:12]} (11. Ne5 $11 {remains equal.} Nxe5 12. dxe5) 11... c5 {[%emt 0:02:33]} 12. Ne5 {[%emt 0:06:13]} cxd4 $146 {[%emt 0:05:12]} ({Predecessor:} 12... Nxe5 13. Bxf6 Bxf6 14. dxe5 Bxe5 15. Bxa8 Qxa8 16. Nd2 c4 17. Rac1 Rc8 18. Rfd1 h5 {0-1 Grabarczyk,M (2445)-Vysochin,S (2550) Wroclaw Anderssen Memorial op 21st rapid 2012 (9)}) 13. Nxd7 $2 {[%emt 0:11:10]} (13. Nc6 $1 $15 Rc8 14. Qd1) 13... Qxd7 {[%emt 0:05:10]} 14. Bxa8 {[%emt 0:03:28]} Rxa8 {[%emt 0:01:24]} 15. Rc1 $2 {[%emt 0:02:15]} (15. Bxf6 $17 Bxf6 (15... Rc8 16. Qb3 $15) 16. Rc1) 15... h6 $2 {[%emt 0:15:31]} (15... Rc8 $19 {and Black stays clearly on top.} 16. Qd1 Rxc1 17. Bxc1 Qd5) 16. Bxf6 $17 {[%emt 0:05:06]} Bxf6 {[%emt 0:01:50]} 17. Nd2 {[%emt 0:01:55]} Rd8 {[%emt 0:05:32]} (17... Bxe2 $6 18. Qe4 Rb8 19. Qxe2 $14) (17... d3 $15 18. exd3 Bxd3) 18. Ne4 $1 $11 {[%emt 0:02:48]} Be7 {[%emt 0:00:12]} 19. Re1 $2 {[%emt 0:21:32]} (19. f3 $1 $11) 19... Qd5 $1 $19 {[%emt 0:05:19]} 20. f3 {[%emt 0:05:18]} b3 {[%emt 0:02:48]} (20... Rc8 $19 21. Qd1 b3 (21... d3 $2 22. exd3 Qd4+ 23. Kh1 $17)) 21. Qd2 $2 {[%emt 0:00:45]} (21. Qc7 $17 {only move.} Rd7 22. Qb8+ Kh7 23. Rad1) 21... f5 $19 {[%emt 0:01:10]} 22. Nf2 {[%emt 0:00:33]} Bg5 {[%emt 0:03:14]} 23. f4 {[%emt 0:01:32]} Bf6 {[%emt 0:06:37]} 24. e4 {[%emt 0:00:28]} dxe3 {[%emt 0:02:55]} (24... fxe4 $19 {is more deadly. aiming for ...e3.} 25. Rxe4 Rc8) 25. Qxe3 $17 {[%emt 0:00:58]} Bb7 {[%emt 0:00:40]} (25... Bxb2 26. Rad1 Bd4 27. Rxd4 (27. Qxe6+ $2 Qxe6 28. Rxe6 Bxf2+ 29. Kxf2 Rxd1 $19) 27... Qxd4 28. Qxe6+ Kh7 29. Qxa6 $17) ({Black should try} 25... Bc4 $1 26. Rad1 Bd4 27. Rxd4 Qxd4 28. Qxd4 Rxd4) 26. Qxe6+ $17 {[%emt 0:00:28]} Qxe6 {[%emt 0:00:02]} 27. Rxe6 {[%emt 0:00:10]} Bxb2 {[%emt 0:00:08]} 28. Rb1 {[%emt 0:03:26]} Rd2 {[%emt 0:00:32]} (28... Bd4 $17 {...b2 is the strong threat.} 29. Rxb3 Bd5) 29. Re3 $2 {[%emt 0:00:59] [#]} (29. Re8+ $1 $11 {and White stays safe.} Kh7 30. Rb8) 29... Bd4 {[%emt 0:01:34]} (29... Ba6 $1 $19 {Hoping for ...Bc4.} 30. Rd1 (30. Rxb3 $2 Bd4 $19) 30... Rxd1+ 31. Nxd1 Bd4) 30. Rbxb3 $17 {[%emt 0:00:12]} Bxe3 {[%emt 0:00:14]} 31. Rxe3 {[%emt 0:00:16]} Ra2 {[%emt 0:01:37]} 32. Nd3 {[%emt 0:01:05]} Rxa4 {[%emt 0:00:20]} 33. Re7 {[%emt 0:01:21]} Bd5 {[%emt 0:02:01]} 34. Ne5 {[%emt 0:00:32]} Ra2 {[%emt 0:02:30]} 35. Kf1 {[%emt 0:02:15]} (35. h4 $1 $15) 35... a5 $1 $19 {[%emt 0:02:32]} ({Don't do} 35... Rxh2 36. Rd7 Be4 37. Rxa7 $11) 36. h4 {[%emt 0:00:10]} a4 {[%emt 0:04:32]} 37. g4 $2 {[%emt 0:03:48]} (37. h5 {nothing else works.}) 37... fxg4 $19 {[%emt 0:01:45]} 38. Rd7 {[%emt 0:00:27]} Rd2 {[%emt 0:05:39]} 39. Ke1 {[%emt 0:00:17]} g3 {[%emt 0:00:10]} ({Less strong is} 39... Rd4 40. Rd8+ Kh7 41. h5 $17) 40. Kxd2 {[%emt 0:03:08]} g2 {[%emt 0:00:05]} 41. h5 {[%emt 0:00:08]} g1=Q {[%emt 0:00:38]} (41... g1=R $2 {perishes.} 42. Rxd5 Rh1 43. Nc4 $18) 42. Rd8+ {[%emt 0:00:03]} Kh7 {[%emt 0:00:07]} 43. Ng6 {[%emt 0:00:03]} Qd4+ {[%emt 0:01:31]} 44. Ke1 {[%emt 0:00:06]} Qe3+ {[%emt 0:01:18]} 45. Kf1 {[%emt 0:00:02]} Qf3+ {[%emt 0:01:38]} 46. Ke1 {[%emt 0:00:12]} Qxh5 {[%emt 0:00:37]} 47. f5 {[%emt 0:01:23]} Qxf5 {[%emt 0:01:03]} 48. Nf8+ {[%emt 0:00:07]} Kg8 {[%emt 0:00:05]} 49. Nd7+ {[%emt 0:00:20] [#]} Kf7 $1 {[%emt 0:00:07]} 50. Rf8+ {[%emt 0:00:26]} Kg6 {[%emt 0:00:08]} 51. Rxf5 {[%emt 0:00:07]} Kxf5 {[%emt 0:08:26]} 52. Nb6 {[%emt 0:00:01]} Bb3 {[%emt 0:00:00]} 0-1

[Event "Charlotte Spring GM-A 2024"]
[Site "Charlotte"]
[Date "2024.03.31"]
[Round "8.5"]
[White "Putnam, Liam"]
[Black "Chen, Ryo"]
[Result "1/2-1/2"]
[ECO "B06"]
[WhiteElo "2323"]
[BlackElo "2316"]
[Annotator "RC"]
[PlyCount "176"]
[EventDate "2024.03.27"]
[EventType "tourn"]
[EventCountry "USA"]
[SourceTitle "playchess.com"]
[Source "ChessBase"]
[SourceQuality "1"]
[TimeControl "5400+30"]

1. e4 {[%emt 0:10:37]} c5 {[%emt 0:00:06]} 2. c3 {[%emt 0:00:12]} d5 {[%emt 0:00:07]} 3. exd5 {[%emt 0:00:07]} Qxd5 {[%emt 0:00:03]} 4. d4 {[%emt 0:00:09]} g6 {[%emt 0:00:06]} 5. Nf3 {[%emt 0:00:16]} Bg7 {[%emt 0:00:07]} 6. Nbd2 {[%emt 0:01:09]} cxd4 {[%emt 0:02:04]} 7. Bc4 {[%emt 0:00:06]} Qd8 {[%emt 0:06:59]} 8. Nxd4 {[%emt 0:05:53]} Nf6 {[%emt 0:00:32]} 9. O-O {[%emt 0:00:24]} O-O {[%emt 0:00:17]} 10. N2f3 {[%emt 0:02:13]} a6 {[%emt 0:02:10]} 11. Qe2 {[%emt 0:10:44]} Qc7 {[%emt 0:07:25]} 12. Re1 {[%emt 1:04:40]} Nfd7 {[%emt 0:23:48]} 13. Ng5 {[%emt 0:00:00]} Ne5 {[%emt 0:53:16]} 14. Bb3 {[%emt 0:00:00]} Nbc6 {[%emt 0:00:00]} 15. Bf4 {[%emt 0:00:00]} Qb6 {[%emt 0:00:00]} 16. Kh1 {[%emt 0:00:00]} h6 {[%emt 0:00:00]} 17. Bxe5 {[%emt 0:00:00]} Nxe5 {[%emt 0:00:00]} 18. f4 {[%emt 0:00:00]} Qf6 {[%emt 0:00:00]} 19. Nge6 {[%emt 0:00:00]} Bxe6 {[%emt 0:00:00]} 20. fxe5 {[%emt 0:00:00]} Qh4 {[%emt 0:00:00]} 21. Bxe6 {[%emt 0:00:00]} fxe6 {[%emt 0:00:00]} 22. g3 {[%emt 0:00:00]} Qh3 {[%emt 0:00:00]} 23. Qg2 {[%emt 0:00:00]} Qxg2+ {[%emt 0:00:00]} 24. Kxg2 {[%emt 0:00:00]} Rad8 {[%emt 0:00:00]} 25. Re2 {[%emt 0:00:00]} Rd5 {[%emt 0:00:00]} 26. Rae1 {[%emt 0:00:00]} g5 {[%emt 0:00:00]} 27. Nxe6 {[%emt 0:00:00]} Rf5 {[%emt 0:00:00]} 28. g4 {[%emt 0:00:00]} Rf7 {[%emt 0:00:00]} 29. Nd4 {[%emt 0:00:00]} b5 {[%emt 0:00:00]} 30. Nc6 {[%emt 0:00:00]} e6 {[%emt 0:00:00]} 31. Nb4 {[%emt 0:00:00]} Rd8 {[%emt 0:00:00]} 32. Nxa6 {[%emt 0:00:00]} Bf8 {[%emt 0:00:00]} 33. a3 {[%emt 0:00:00]} Ra8 {[%emt 0:00:00]} 34. Nb4 {[%emt 0:00:00]} Bxb4 {[%emt 0:00:00]} 35. axb4 {[%emt 0:00:00]} Rd8 {[%emt 0:00:00]} 36. Ra1 {[%emt 0:00:00]} Rf4 {[%emt 0:00:00]} 37. h3 {[%emt 0:00:00]} Rd3 {[%emt 0:00:00]} 38. Ra8+ {[%emt 0:00:00]} Kg7 {[%emt 0:12:30]} 39. Ra7+ {[%emt 0:13:30]} Kg8 {[%emt 0:00:00]} 40. Rf2 {[%emt 0:00:00]} Re4 {[%emt 0:00:00]} 41. Ra8+ {[%emt 0:00:00]} Kg7 {[%emt 0:01:30]} 42. Ra7+ {[%emt 0:00:00]} Kg8 {[%emt 0:00:00]} 43. Rc7 {[%emt 0:00:00]} Rxe5 {[%emt 0:00:00]} 44. Rc8+ {[%emt 0:00:00]} Kg7 {[%emt 0:01:30]} 45. Rc7+ {[%emt 0:00:00]} Kg8 {[%emt 0:00:00]} 46. Rc5 {[%emt 0:00:00]} Rdd5 {[%emt 0:00:00]} 47. Rxd5 {[%emt 0:00:00]} Rxd5 {[%emt 0:00:00]} 48. Rf6 {[%emt 0:00:00]} Rd2+ {[%emt 0:00:00]} 49. Kf3 {[%emt 0:00:00]} Rxb2 {[%emt 0:02:30]} 50. Rxe6 {[%emt 0:00:00]} Kg7 {[%emt 0:00:30]} 51. Re5 {[%emt 0:00:38]} Rh2 {[%emt 0:00:00]} 52. Kg3 {[%emt 0:00:22]} Rc2 {[%emt 0:00:00]} 53. Rc5 {[%emt 0:00:02]} Rd2 {[%emt 0:00:00]} 54. Rf5 {[%emt 0:01:08]} Rd3+ {[%emt 0:00:00]} 55. Rf3 {[%emt 0:00:08]} Rd2 {[%emt 0:00:00]} 56. h4 {[%emt 0:00:19]} gxh4+ {[%emt 0:00:00]} 57. Kxh4 {[%emt 0:00:08]} Kg6 {[%emt 0:03:30]} 58. Kg3 {[%emt 0:00:15]} Rd8 {[%emt 0:00:00]} 59. Kf4 {[%emt 0:00:50]} Rc8 {[%emt 0:00:00]} 60. Rd3 {[%emt 0:06:40]} Rc4+ {[%emt 0:00:00]} 61. Kf3 {[%emt 0:00:00]} Kg7 {[%emt 0:02:00]} 62. Kg3 {[%emt 0:00:00]} Kg6 {[%emt 0:00:00]} 63. Kh4 {[%emt 0:00:00]} Rc6 {[%emt 0:00:00]} 64. Re3 {[%emt 0:00:00]} Rc4 {[%emt 0:00:00]} 65. Kg3 {[%emt 0:00:00]} Rc6 {[%emt 0:00:00]} 66. Kf3 {[%emt 0:00:00]} Rc4 {[%emt 0:00:00]} 67. Rd3 {[%emt 0:00:36]} Kf6 {[%emt 0:00:00]} 68. Kg3 {[%emt 0:01:57]} Kg6 {[%emt 0:03:30]} 69. Rd5 {[%emt 0:00:26]} Rxc3+ {[%emt 0:00:00]} 70. Kh4 {[%emt 0:00:07]} Rb3 {[%emt 0:00:00]} 71. Rxb5 {[%emt 0:00:05]} Kh7 {[%emt 0:00:00]} 72. Rb7+ {[%emt 0:00:26]} Kg6 {[%emt 0:02:00]} 73. b5 {[%emt 0:01:21]} Rb4 {[%emt 0:00:00]} 74. Rb6+ {[%emt 0:00:44]} Kg7 {[%emt 0:00:00]} 75. Kh5 {[%emt 0:00:32]} Rb1 {[%emt 0:00:00]} 76. Rb7+ {[%emt 0:00:18]} Kf6 {[%emt 0:02:00]} 77. Kh4 {[%emt 0:00:03]} Rb3 {[%emt 0:00:00]} 78. b6 {[%emt 0:01:31]} Kg6 {[%emt 0:01:00]} 79. Rb8 {[%emt 0:00:09]} Kg7 {[%emt 0:00:30]} 80. g5 {[%emt 0:00:23]} hxg5+ {[%emt 0:00:00]} 81. Kxg5 {[%emt 0:00:04]} Rb5+ {[%emt 0:00:00]} 82. Kf4 {[%emt 0:00:05]} Kf6 {[%emt 0:00:00]} 83. Rh8 Rb4+ {[%emt 0:02:00]} 84. Ke3 {[%emt 0:00:55]} Ke5 {[%emt 0:00:30]} 85. Rh6 {[%emt 0:00:18]} Kd5 {[%emt 0:00:00]} 86. Kd3 {[%emt 0:00:04]} Kc5 {[%emt 0:00:00]} 87. Kc3 {[%emt 0:00:04]} Rxb6 {[%emt 0:00:00]} 88. Rxb6 {[%emt 0:00:02]} Kxb6 {[%emt 0:02:00]} 1/2-1/2

[Event "Charlotte Spring GM-A 2024"]
[Site "Charlotte"]
[Date "2024.03.31"]
[Round "9.1"]
[White "Chen, Ryo"]
[Black "Wang, Tianqi"]
[Result "1/2-1/2"]
[ECO "B36"]
[WhiteElo "2316"]
[BlackElo "2344"]
[Annotator "RC"]
[PlyCount "61"]
[EventDate "2024.03.27"]
[EventType "tourn"]
[EventCountry "USA"]
[SourceTitle "playchess.com"]
[Source "ChessBase"]
[SourceQuality "1"]
[TimeControl "5400+30"]

1. e4 {[%emt 1:31:00]} c5 {[%emt 0:09:58]} 2. Nf3 {[%emt 0:00:00]} Nc6 {[%emt 0:00:08]} 3. d4 {[%emt 0:00:00]} cxd4 {[%emt 0:00:07]} 4. Nxd4 {[%emt 0:00:00]} g6 {[%emt 0:00:06]} 5. c4 {[%emt 0:00:00]} Nf6 {[%emt 0:00:07]} 6. Nc3 {[%emt 0:00:00]} d6 {[%emt 0:00:05]} 7. Be2 {[%emt 0:00:00]} Nxd4 {[%emt 0:00:08]} 8. Qxd4 {[%emt 0:00:00]} Bg7 {[%emt 0:00:04]} 9. Be3 {[%emt 0:00:00]} O-O {[%emt 0:00:08]} 10. Qd2 {[%emt 0:00:00]} a5 {[%emt 0:00:09]} 11. O-O {[%emt 0:00:00]} a4 {[%emt 0:00:09]} 12. Bd4 {[%emt 0:00:00]} Bd7 {[%emt 0:01:13]} 13. Rfe1 {[%emt 0:00:00]} Bc6 {[%emt 0:02:05]} 14. Rad1 {[%emt 0:00:00]} Qa5 {[%emt 0:00:36]} 15. Bf1 {[%emt 0:00:00]} Nd7 {[%emt 0:05:34]} 16. Bxg7 {[%emt 0:00:00]} Kxg7 {[%emt 0:00:07]} 17. f4 {[%emt 0:00:00]} e5 {[%emt 0:09:08]} 18. f5 {[%emt 0:00:00]} Nf6 {[%emt 0:00:22]} 19. Bd3 {[%emt 0:00:00]} h6 {[%emt 0:01:12]} 20. Re3 {[%emt 0:00:00]} g5 {[%emt 0:18:11]} 21. Rg3 {[%emt 0:00:00]} Qb6+ {[%emt 0:00:18]} 22. Kh1 {[%emt 0:00:00]} Kh7 {[%emt 0:01:46]} 23. Bc2 {[%emt 0:00:00]} Rad8 {[%emt 0:17:00]} 24. Re1 {[%emt 0:00:00]} Qd4 {[%emt 0:06:59]} 25. Qe2 {[%emt 0:00:00]} Qa7 {[%emt 0:00:30]} 26. Rd1 {[%emt 0:00:00]} Qa5 {[%emt 0:00:49]} 27. a3 {[%emt 0:00:00]} Rd7 {[%emt 0:06:45]} 28. Qe1 {[%emt 0:00:00]} Ra8 {[%emt 0:00:39]} 29. Qe2 {[%emt 0:00:00]} Qb6 {[%emt 0:00:18]} 30. Rgd3 {[%emt 0:00:00]} Kg7 {[%emt 0:01:58]} 31. Rh3 {[%emt 0:15:00]} 1/2-1/2

[Event "Charlotte Spring GM-A 2024"]
[Site "Charlotte"]
[Date "2024.03.31"]
[Round "9.2"]
[White "Ali Marandi, Cemil Can"]
[Black "Putnam, Liam"]
[Result "1/2-1/2"]
[ECO "D02"]
[WhiteElo "2516"]
[BlackElo "2323"]
[Annotator "TA"]
[PlyCount "56"]
[EventDate "2024.03.27"]
[EventType "tourn"]
[EventCountry "USA"]
[SourceTitle "playchess.com"]
[Source "ChessBase"]
[SourceQuality "1"]
[TimeControl "5400+30"]

{[%evp 13,56,8,12,0,-5,-18,-16,-20,-8,-14,-12,-10,-4,-13,0,-12,0,0,0,0,0,0,0,0,0,0,0,0,7,0,9,13,14,0,0,0,0,0,0,0,0,0,0,0,0]} 1. d4 {[%emt 0:00:04]} Nf6 {[%emt 0:00:05]} 2. Nf3 {[%emt 0:00:10]} d5 {[%emt 0:00:22]} 3. c3 {[%emt 0:00:31]} g6 {[%emt 0:01:27]} 4. Bf4 {[%emt 0:01:25]} Bg7 {[%emt 0:00:14]} 5. h3 {[%emt 0:01:04]} O-O {[%emt 0:00:43]} 6. e3 {[%emt 0:00:10]} c5 {[%emt 0:01:35]} 7. Nbd2 {[%emt 0:02:08]} b6 {[%emt 0:04:47] The position is equal.} 8. Bh2 {[%emt 0:02:37]} Bb7 {[%emt 0:01:05]} 9. Bd3 {[%emt 0:02:14]} Nc6 {[%emt 0:03:25]} 10. O-O {[%emt 0:03:43]} Nd7 {[%emt 0:01:36]} 11. Qe2 {[%emt 0:04:44]} e5 {[%emt 0:08:19]} 12. dxe5 {[%emt 0:00:30]} Ndxe5 {[%emt 0:00:45]} 13. Nxe5 {[%emt 0:03:26]} Nxe5 {[%emt 0:04:22]} 14. Ba6 {[%emt 0:03:05]} Qc8 {[%emt 0:00:23]} 15. Bxb7 {[%emt 0:00:20]} Qxb7 {[%emt 0:00:05]} 16. Bxe5 {[%emt 0:00:45]} Bxe5 {[%emt 0:00:05]} 17. Rad1 {[%emt 0:00:52]} Rad8 {[%emt 0:00:20]} 18. Nf3 {[%emt 0:02:30]} Bf6 {[%emt 0:00:16]} 19. Rd2 {[%emt 0:00:37]} Rd7 {[%emt 0:01:00]} 20. Rfd1 {[%emt 0:02:31]} Rfd8 {[%emt 0:01:25]} 21. Ne1 {[%emt 0:01:41]} d4 {[%emt 0:15:58]} 22. exd4 {[%emt 0:13:33]} cxd4 {[%emt 0:00:06]} 23. Qf3 {[%emt 0:01:52]} dxc3 {[%emt 0:03:17]} 24. Rxd7 {[%emt 0:05:50]} Rxd7 {[%emt 0:00:12]} 25. Rxd7 {[%emt 0:00:11]} (25. bxc3 $2 {loses.} Qxf3 26. Rxd7 Qxc3 $19) 25... Qxd7 {[%emt 0:00:02]} 26. Qxf6 {[%emt 0:00:23]} c2 {[%emt 0:00:08]} 27. Nxc2 {[%emt 0:03:06]} Qd1+ {[%emt 0:00:07]} 28. Kh2 {[%emt 0:00:04]} Qxc2 {[%emt 0:52:21] An uneventful encounter.   Weighted Error Value: White=0.03 (flawless) /Black=0.02 (flawless) .  OK:         	White=11    	Black=5      Best:        	White=1     	Black=3} 1/2-1/2

[Event "Charlotte Spring GM-A 2024"]
[Site "Charlotte"]
[Date "2024.03.31"]
[Round "9.3"]
[White "Levine, Joseph"]
[Black "Tsay, Vincent"]
[Result "1/2-1/2"]
[ECO "B45"]
[WhiteElo "2372"]
[BlackElo "2337"]
[Annotator "RC"]
[PlyCount "44"]
[EventDate "2024.03.27"]
[EventType "tourn"]
[EventCountry "USA"]
[SourceTitle "playchess.com"]
[Source "ChessBase"]
[SourceQuality "1"]
[TimeControl "5400+30"]

1. e4 {[%emt 0:00:01]} c5 {[%emt 0:01:36]} 2. Nf3 {[%emt 0:00:09]} e6 {[%emt 0:00:03]} 3. d4 {[%emt 0:00:07]} cxd4 {[%emt 0:00:03]} 4. Nxd4 {[%emt 0:00:04]} Nf6 {[%emt 0:00:04]} 5. Nc3 {[%emt 0:00:05]} Nc6 {[%emt 0:00:03]} 6. Nxc6 {[%emt 0:00:09]} bxc6 {[%emt 0:00:05]} 7. e5 {[%emt 0:00:10]} Nd5 {[%emt 0:00:04]} 8. Ne4 {[%emt 0:00:05]} Bb7 {[%emt 0:00:23]} 9. Be2 {[%emt 0:01:55]} c5 {[%emt 0:00:18]} 10. O-O {[%emt 0:00:11]} Qc7 {[%emt 0:00:03]} 11. Nd6+ {[%emt 0:00:06]} Bxd6 {[%emt 0:00:33]} 12. exd6 {[%emt 0:00:03]} Qc6 {[%emt 0:00:07]} 13. f3 {[%emt 0:00:11]} Qb6 {[%emt 0:00:50]} 14. c4 {[%emt 0:05:16]} Nb4 {[%emt 0:00:05]} 15. Be3 {[%emt 0:00:21]} a5 {[%emt 0:05:12]} 16. f4 {[%emt 0:04:58]} Be4 {[%emt 0:11:21]} 17. Bf3 {[%emt 0:08:25]} Bxf3 {[%emt 0:01:01]} 18. Rxf3 {[%emt 0:20:27]} Nc6 {[%emt 1:17:39]} 19. Qb3 {[%emt 0:08:34]} Qb4 {[%emt 0:00:00]} 20. Qxb4 {[%emt 0:00:52]} cxb4 {[%emt 0:00:00]} 21. Bb6 {[%emt 0:01:33]} f5 {[%emt 0:00:00]} 22. Re1 {[%emt 0:08:34]} Kf7 {[%emt 0:00:00]} 1/2-1/2